bitfinex/quotes_BTCUSD_20260110
["timestamp","ask_amount","ask_price","bid_price","bid_amount"]
[1768015984021,0.03,90607.0,90597.0,0.0569805]
[1768015984714,0.03,90606.0,90597.0,0.0569805]
[1768015984855,0.03,90606.0,90598.0,0.01103777]
[1768015985053,0.03,90606.0,90597.0,0.0569805]
[1768015985258,0.03,90606.0,90597.0,0.04594261]
[1768015985654,0.03,90609.0,90597.0,0.0569805]
[1768015987268,0.03,90607.0,90597.0,0.04594261]
[1768015987774,0.03,90607.0,90599.0,0.04973101]
[1768015988384,0.03,90606.0,90599.0,0.04973101]
[1768015989349,0.03,90605.0,90599.0,0.04973101]
[1768015990336,0.03,90608.0,90599.0,0.04973101]
[1768015990541,0.04103655,90608.0,90599.0,0.04973101]
[1768015990745,0.03,90608.0,90599.0,0.04973101]
[1768015990994,0.03,90605.0,90599.0,0.01883173]
[1768015991371,0.03,90602.0,90599.0,0.01883173]
[1768015992461,0.04103679,90606.0,90599.0,0.01883173]
[1768015992693,0.03,90606.0,90599.0,0.01883173]
[1768015993880,0.03,90605.0,90599.0,0.01883173]
[1768015994912,0.03,90604.0,90599.0,0.01883173]
[1768015995897,0.03,90603.0,90599.0,0.01883173]
[1768015997102,0.03,90609.0,90599.0,0.01883173]
[1768016000622,0.03,90609.0,90599.0,0.02986937]
[1768016000824,0.03,90609.0,90600.0,0.04973101]
[1768016001023,0.03,90608.0,90600.0,0.04973101]
[1768016002182,0.03,90607.0,90600.0,0.04973101]
[1768016003226,0.03,90606.0,90600.0,0.04973101]
[1768016004166,0.03,90605.0,90600.0,0.04973101]
[1768016005254,0.03,90604.0,90600.0,0.04973101]
[1768016006280,0.03,90609.0,90600.0,0.04973101]
[1768016008883,0.03,90608.0,90600.0,0.04973101]
[1768016010389,0.03,90609.0,90600.0,0.04973101]
[1768016023881,0.24952683,90610.0,90600.0,0.04973101]
[1768016024478,0.03,90610.0,90600.0,0.04973101]
[1768016024647,0.03,90610.0,90600.0,0.06076853]
[1768016024845,0.03,90612.0,90600.0,0.06076853]
[1768016026026,0.03,90611.0,90600.0,0.04973101]
[1768016026445,0.03,90611.0,90600.0,0.06076853]
[1768016027045,0.03,90612.0,90601.0,0.0110374]
[1768016027455,0.02208,90618.0,90607.0,0.0486631]
[1768016027658,0.02208,90618.0,90610.0,0.0110363]
[1768016027866,0.02208,90618.0,90609.0,0.01103643]
[1768016028073,0.03,90617.0,90610.0,0.0110363]
[1768016028274,0.03,90617.0,90609.0,0.01103643]
[1768016028550,0.03,90617.0,90607.0,0.10384635]
[1768016028551,0.03,90617.0,90607.0,0.0486631]
[1768016028754,0.03,90617.0,90608.0,0.01103655]
[1768016029712,0.03,90617.0,90609.0,0.01103643]
[1768016029916,0.03,90617.0,90608.0,0.01103655]
[1768016030645,0.03,90617.0,90609.0,0.01103643]
[1768016030825,0.03,90617.0,90608.0,0.01103655]
[1768016031781,0.03,90617.0,90607.0,0.05969977]
[1768016031963,0.03,90617.0,90608.0,0.01103655]
[1768016032119,0.03,90617.0,90607.0,0.05969977]
[1768016032294,0.03,90617.0,90607.0,0.0486631]
[1768016033316,0.04103545,90617.0,90607.0,0.0486631]
[1768016033691,0.03,90617.0,90607.0,0.0486631]
[1768016033899,0.03,90617.0,90607.0,0.05969977]
[1768016034746,0.03,90617.0,90608.0,0.01103655]
[1768016035285,0.03,90617.0,90607.0,0.05969977]
[1768016035934,0.03,90617.0,90608.0,0.01103655]
[1768016038957,0.03,90617.0,90607.0,0.05969977]
[1768016039455,0.03,90617.0,90607.0,0.0486631]
[1768016039661,0.03,90617.0,90607.0,0.05969977]
[1768016040466,0.03,90617.0,90608.0,0.01103655]
[1768016042812,0.03,90617.0,90607.0,0.05969977]
[1768016043013,0.03,90617.0,90608.0,0.01103655]
[1768016043853,0.03,90617.0,90607.0,0.05969977]
[1768016044061,0.03,90617.0,90607.0,0.11488268]
[1768016044269,0.02208,90618.0,90611.0,0.04603458]
[1768016044472,0.02208,90618.0,90613.0,0.04603458]
[1768016044688,0.03,90619.0,90613.0,0.04598987]
[1768016044859,0.03009345,90619.0,90613.0,0.04598987]
[1768016049920,0.03009345,90619.0,90613.0,0.04594483]
[1768016054186,0.0001515,90621.0,90613.0,0.04594483]
[1768016054427,0.0001515,90621.0,90618.0,0.04603458]
[1768016054707,0.0001515,90621.0,90618.0,0.05706991]
[1768016055362,1e-08,90621.0,90620.0,0.10121003]
[1768016055562,1e-08,90621.0,90620.0,0.04603458]
[1768016060696,1e-08,90621.0,90620.0,0.04598988]
[1768016069829,1e-08,90621.0,90619.0,0.02208]
[1768016070279,1e-08,90621.0,90619.0,0.06811458]
[1768016072447,1e-08,90621.0,90620.0,0.04603458]
[1768016072656,1e-08,90621.0,90619.0,0.02208]
[1768016072917,0.03259848,90620.0,90619.0,0.02208]
[1768016073058,0.06259848,90620.0,90619.0,0.02208]
[1768016074928,0.03980612,90620.0,90619.0,0.02208]
[1768016076822,0.03980612,90620.0,90619.0,0.021081]
[1768016077629,0.00980612,90620.0,90619.0,0.02208]
[1768016077836,1e-08,90621.0,90619.0,0.02208]
[1768016078034,1e-08,90621.0,90620.0,0.04799649]
[1768016083711,1e-08,90621.0,90619.0,0.02208]
[1768016084379,1e-08,90621.0,90620.0,0.04799649]
[1768016086481,1e-08,90621.0,90619.0,0.02208]
[1768016086684,1e-08,90621.0,90620.0,0.04799649]
[1768016100741,1e-08,90621.0,90619.0,0.02208]
[1768016103334,1e-08,90621.0,90619.0,0.06886269]
[1768016103562,1e-08,90621.0,90620.0,0.04678269]
[1768016104730,0.25092732,90630.0,90619.0,0.02208]
[1768016104731,0.0001515,90630.0,90621.0,0.04678269]
[1768016104934,0.00980612,90629.0,90619.0,0.02208]
[1768016105685,0.03980612,90628.0,90619.0,0.02208]
[1768016106110,0.03,90625.0,90619.0,0.02208]
[1768016107100,0.03980612,90622.0,90619.0,0.02208]
[1768016108039,0.03,90622.0,90619.0,0.06886269]
[1768016108296,0.03,90621.0,90620.0,0.04678269]
[1768016109536,0.03,90625.0,90620.0,0.04678269]
[1768016111535,0.03,90624.0,90620.0,0.04678269]
[1768016111968,0.03,90624.0,90620.0,0.04673799]
[1768016112506,0.03,90625.0,90620.0,0.04673799]
[1768016117641,0.03,90624.0,90620.0,0.04673799]
[1768016117847,0.03,90624.0,90619.0,0.02208]
[1768016118592,0.03,90628.0,90619.0,0.02208]
[1768016119298,0.04103411,90628.0,90619.0,0.02208]
[1768016119500,0.03,90626.0,90619.0,0.02208]
[1768016120600,0.03,90625.0,90619.0,0.02208]
[1768016121541,0.03,90625.0,90620.0,0.04678269]
[1768016122364,0.03,90624.0,90620.0,0.04678269]
[1768016123345,0.03,90627.0,90620.0,0.04678269]
[1768016123552,0.04103423,90627.0,90620.0,0.04678269]
[1768016124294,0.03,90627.0,90620.0,0.04678269]
[1768016125208,0.04103423,90627.0,90620.0,0.04678269]
[1768016125411,0.03,90625.0,90620.0,0.04678269]
[1768016126483,0.03,90624.0,90619.0,0.02208]
[1768016126687,0.03,90624.0,90619.0,0.06886269]
[1768016126881,0.03,90624.0,90620.0,0.04678269]
[1768016127508,0.04103448,90625.0,90620.0,0.04678269]
[1768016127989,0.03,90623.0,90620.0,0.04678269]
[1768016128703,0.03,90623.0,90619.0,0.02208]
[1768016128944,0.03,90625.0,90619.0,0.02208]
[1768016129354,0.04103448,90625.0,90619.0,0.02208]
[1768016130536,0.03,90625.0,90619.0,0.02208]
[1768016130743,0.03,90624.0,90619.0,0.02208]
[1768016131913,0.03,90623.0,90619.0,0.02208]
[1768016132948,0.03,90624.0,90619.0,0.02208]
[1768016133950,0.03,90623.0,90619.0,0.02208]
[1768016134311,0.03,90621.0,90619.0,0.02208]
[1768016134767,0.03,90621.0,90619.0,0.06934141]
[1768016134937,0.03,90621.0,90620.0,0.04726141]
[1768016135372,0.04103436,90626.0,90620.0,0.04726141]
[1768016135572,0.03,90626.0,90620.0,0.04726141]
[1768016136549,0.03,90625.0,90620.0,0.04726141]
[1768016136953,0.03985082,90625.0,90619.0,0.02208]
[1768016138128,0.01103411,90628.0,90619.0,0.02208]
[1768016138129,0.03,90624.0,90620.0,0.04726141]
[1768016138339,0.01103399,90629.0,90620.0,0.04726141]
[1768016139029,0.01103399,90629.0,90619.0,0.02208]
[1768016139334,0.30609676,90630.0,90601.0,0.0110374]
[1768016139335,0.03,90616.0,90601.0,0.0110374]
[1768016139557,4.281e-05,90616.0,90604.0,0.04726141]
[1768016139756,4.281e-05,90616.0,90604.0,0.01103704]
[1768016140132,4.281e-05,90616.0,90605.0,0.04726141]
[1768016140350,0.04107838,90616.0,90605.0,0.04726141]
[1768016141138,0.03,90614.0,90605.0,0.04726141]
[1768016141347,0.03,90607.0,90605.0,0.04726141]
[1768016141555,0.03,90607.0,90600.0,0.04726141]
[1768016142757,0.03,90602.0,90600.0,0.04726141]
[1768016143778,0.03,90601.0,90600.0,0.04726141]
[1768016144418,0.03,90601.0,90598.0,0.0001515]
[1768016144958,0.03,90602.0,90599.0,3.49786241]
[1768016145143,0.03,90602.0,90600.0,0.04726141]
[1768016146008,0.03,90601.0,90599.0,3.450601]
[1768016146224,0.01103691,90605.0,90599.0,3.450601]
[1768016146440,0.01103643,90609.0,90599.0,3.450601]
[1768016146682,0.01103667,90607.0,90599.0,3.450601]
[1768016146882,0.01103679,90606.0,90599.0,3.450601]
[1768016147114,0.03,90605.0,90599.0,3.450601]
[1768016147728,0.04103691,90605.0,90599.0,3.450601]
[1768016147950,0.01103704,90604.0,90599.0,3.450601]
[1768016148157,0.03,90603.0,90600.0,0.04726141]
[1768016149170,0.03,90606.0,90600.0,0.04726141]
[1768016150115,0.04103679,90606.0,90600.0,0.04726141]
[1768016150318,0.03,90606.0,90600.0,0.04726141]
[1768016150794,0.03,90604.0,90600.0,0.04726141]
[1768016151429,0.03,90602.0,90600.0,0.04726141]
[1768016152465,0.03,90603.0,90600.0,0.04726141]
[1768016153440,0.04103704,90604.0,90600.0,0.04726141]
[1768016153901,0.03,90604.0,90600.0,0.04726141]
[1768016155761,0.01103691,90605.0,90600.0,0.04726141]
[1768016155762,0.03,90603.0,90600.0,0.04726141]
[1768016156971,0.03,90602.0,90600.0,0.04726141]
[1768016157415,0.01103679,90606.0,90600.0,0.04726141]
[1768016158062,0.03,90606.0,90599.0,3.450601]
[1768016158263,0.04103679,90606.0,90599.0,3.450601]
[1768016158694,0.01096335,90605.0,90599.0,3.450601]
[1768016159158,0.01103679,90606.0,90599.0,3.450601]
[1768016159598,0.01103667,90607.0,90599.0,3.450601]
[1768016159810,0.04103655,90608.0,90599.0,3.450601]
[1768016160448,0.03,90603.0,90599.0,3.450601]
[1768016161464,0.03,90603.0,90599.0,3.49736885]
[1768016161666,0.01103704,90604.0,90599.0,3.49736885]
[1768016161667,0.03,90601.0,90599.0,3.49736885]
[1768016162329,0.01103691,90605.0,90600.0,0.04676785]
[1768016162473,0.01103655,90608.0,90600.0,0.04676785]
[1768016162809,0.03,90604.0,90600.0,0.04676785]
[1768016163928,0.03,90603.0,90600.0,0.04676785]
[1768016164932,0.04103704,90604.0,90600.0,0.04676785]
[1768016165130,0.03,90604.0,90600.0,0.04676785]
[1768016166663,0.04103704,90604.0,90600.0,0.04676785]
[1768016167608,0.03,90604.0,90600.0,0.04676785]
[1768016168386,0.04103704,90604.0,90600.0,0.04676785]
[1768016168544,0.03,90604.0,90600.0,0.04676785]
[1768016168930,0.03,90603.0,90600.0,0.04676785]
[1768016169956,0.03,90602.0,90600.0,0.04676785]
[1768016170975,0.03,90601.0,90600.0,0.04676785]
[1768016172176,0.03,90606.0,90600.0,0.04676785]
[1768016173756,0.03,90605.0,90600.0,0.04676785]
[1768016174788,0.03,90604.0,90600.0,0.04676785]
[1768016174934,0.25090759,90610.0,90600.0,0.04676785]
[1768016175130,0.02208,90611.0,90600.0,0.04676785]
[1768016175413,0.03311618,90611.0,90600.0,0.04676785]
[1768016175565,0.02208,90611.0,90600.0,0.04676785]
[1768016175898,0.03,90608.0,90600.0,0.04676785]
[1768016176928,0.03,90607.0,90600.0,0.04676785]
[1768016177988,0.0410363,90610.0,90600.0,0.04676785]
[1768016178509,0.03,90610.0,90600.0,0.04676785]
[1768016178707,0.0410363,90610.0,90600.0,0.04676785]
[1768016180156,0.03,90610.0,90600.0,0.04676785]
[1768016180374,0.03,90608.0,90600.0,0.04676785]
[1768016180807,0.0110363,90610.0,90600.0,0.04676785]
[1768016181641,0.03,90609.0,90600.0,0.04676785]
[1768016182553,0.02208,90611.0,90600.0,0.04676785]
[1768016182554,0.03,90608.0,90600.0,0.04676785]
[1768016182706,0.03,90608.0,90599.0,3.450601]
[1768016183089,0.02208,90611.0,90608.0,0.000999]
[1768016183293,0.03311618,90611.0,90608.0,0.000999]
[1768016183521,0.03,90610.0,90599.0,3.450601]
[1768016184159,0.0410363,90610.0,90599.0,3.450601]
[1768016184508,0.03,90608.0,90600.0,0.04913711]
[1768016185558,0.03,90607.0,90600.0,0.04913711]
[1768016186667,0.03,90610.0,90600.0,0.04913711]
[1768016187296,0.0410363,90610.0,90600.0,0.04913711]
[1768016188087,0.03,90610.0,90600.0,0.04913711]
[1768016188496,0.0410363,90610.0,90600.0,0.04913711]
[1768016188730,0.03,90608.0,90600.0,0.04913711]
[1768016190129,0.03,90607.0,90600.0,0.04913711]
[1768016193017,0.04103667,90607.0,90600.0,0.04913711]
[1768016193711,0.03,90605.0,90600.0,0.04913711]
[1768016195552,0.01096323,90606.0,90600.0,0.04913711]
[1768016197322,0.03,90605.0,90600.0,0.04913711]
[1768016198418,0.04103679,90606.0,90600.0,0.04913711]
[1768016203359,0.03,90606.0,90600.0,0.04913711]
[1768016204181,0.03,90605.0,90600.0,0.04913711]
[1768016205117,0.03,90607.0,90600.0,0.04913711]
[1768016206278,0.03,90606.0,90600.0,0.04913711]
[1768016207261,0.04103643,90609.0,90600.0,0.04913711]
[1768016209099,0.03,90609.0,90600.0,0.04913711]
[1768016210141,0.04103643,90609.0,90600.0,0.04913711]
[1768016210439,0.03,90608.0,90600.0,0.04913711]
[1768016211576,0.03,90607.0,90600.0,0.04913711]
[1768016211745,0.02208,90611.0,90600.0,0.04913711]
[1768016211950,0.00109891,90611.0,90607.0,0.000999]
[1768016212139,0.01213509,90611.0,90600.0,0.04913711]
[1768016212559,0.00109891,90611.0,90600.0,0.04913711]
[1768016212768,0.03,90610.0,90600.0,0.04913711]
[1768016212977,0.03,90610.0,90600.0,0.06017463]
[1768016213182,0.03,90610.0,90600.0,0.04913711]
[1768016222076,0.03,90610.0,90599.0,3.46163864]
[1768016222281,0.03,90610.0,90600.0,0.04769212]
[1768016223247,0.03,90610.0,90601.0,0.04894485]
[1768016239936,0.03,90610.0,90601.0,0.05998225]
[1768016240145,0.03,90610.0,90601.0,0.04894485]
[1768016240550,0.03,90610.0,90602.0,0.04894485]
[1768016242235,0.0410363,90610.0,90602.0,0.04894485]
[1768016243038,0.03,90610.0,90602.0,0.04894485]
[1768016244658,0.0410363,90610.0,90602.0,0.04894485]
[1768016246434,0.03,90610.0,90602.0,0.04894485]
[1768016248174,0.0410363,90610.0,90602.0,0.04894485]
[1768016248679,0.03,90610.0,90602.0,0.04894485]
[1768016248878,0.0410363,90610.0,90602.0,0.04894485]
[1768016249080,0.03,90610.0,90602.0,0.04894485]
[1768016250283,0.0410363,90610.0,90602.0,0.04894485]
[1768016250711,0.03,90610.0,90602.0,0.04894485]
[1768016250930,0.0410363,90610.0,90602.0,0.04894485]
[1768016252308,0.03,90608.0,90602.0,0.04894485]
[1768016253735,0.03,90607.0,90602.0,0.04894485]
[1768016255043,0.03,90607.0,90599.0,3.450601]
[1768016255044,0.03,90606.0,90599.0,3.450601]
[1768016255694,0.03,90606.0,90600.0,0.04835537]
[1768016256218,0.03,90609.0,90600.0,0.04835537]
[1768016258263,0.04103643,90609.0,90600.0,0.04835537]
[1768016258463,0.03,90608.0,90600.0,0.04835537]
[1768016259482,0.03,90609.0,90600.0,0.04835537]
[1768016260645,0.03,90610.0,90600.0,0.04835537]
[1768016261019,0.03,90608.0,90600.0,0.04835537]
[1768016262218,0.03,90607.0,90600.0,0.04835537]
[1768016263142,0.03,90610.0,90600.0,0.04835537]
[1768016263280,0.0410363,90610.0,90600.0,0.04835537]
[1768016263484,0.03,90610.0,90600.0,0.04835537]
[1768016268689,0.0410363,90610.0,90600.0,0.04835537]
[1768016268850,0.03,90610.0,90600.0,0.04835537]
[1768016272055,0.0410363,90610.0,90600.0,0.04835537]
[1768016272347,0.03,90610.0,90600.0,0.04835537]
[1768016280410,0.03,90607.0,90600.0,0.04835537]
[1768016281579,0.03,90610.0,90600.0,0.04835537]
[1768016282226,0.03,90608.0,90600.0,0.04835537]
[1768016283274,0.03,90610.0,90600.0,0.04835537]
[1768016289389,0.0410363,90610.0,90600.0,0.04835537]
[1768016289763,0.03,90608.0,90600.0,0.04835537]
[1768016290822,0.03,90607.0,90600.0,0.04835537]
[1768016291670,0.03,90605.0,90600.0,0.04835537]
[1768016291841,0.04103691,90605.0,90600.0,0.04835537]
[1768016292004,0.03,90603.0,90600.0,0.04835537]
[1768016293141,0.03,90602.0,90599.0,3.450601]
[1768016294248,0.03,90601.0,90599.0,3.450601]
[1768016295265,0.03,90604.0,90599.0,3.450601]
[1768016295491,0.04103704,90604.0,90599.0,3.450601]
[1768016295700,0.04103704,90604.0,90599.0,3.49581058]
[1768016296225,0.03,90602.0,90599.0,3.49581058]
[1768016296641,0.03,90602.0,90600.0,0.04520958]
[1768016297286,0.03,90601.0,90600.0,0.04520958]
[1768016298344,0.03,90605.0,90600.0,0.04520958]
[1768016299422,0.04103679,90606.0,90600.0,0.04520958]
[1768016299724,0.03,90606.0,90600.0,0.04520958]
[1768016300429,0.04103667,90607.0,90600.0,0.04520958]
[1768016300787,0.03,90605.0,90600.0,0.04520958]
[1768016301903,0.03,90607.0,90599.0,3.450601]
[1768016302607,0.03,90607.0,90599.0,3.49581058]
[1768016302950,0.03,90606.0,90599.0,3.49581058]
[1768016304150,0.03,90605.0,90599.0,3.49581058]
[1768016305504,0.03,90607.0,90599.0,3.49581058]
[1768016307028,0.03,90606.0,90599.0,3.49581058]
[1768016307314,0.03,90604.0,90599.0,3.49581058]
[1768016307440,0.03,90604.0,90600.0,0.04520958]
[1768016309262,0.03,90607.0,90600.0,0.04520958]
[1768016309605,0.04103667,90607.0,90600.0,0.04520958]
[1768016309800,0.03,90605.0,90600.0,0.04520958]
[1768016310195,0.03,90605.0,90600.0,0.04516455]
[1768016311142,0.04103667,90607.0,90600.0,0.04516455]
[1768016312453,0.03,90607.0,90600.0,0.04516455]
[1768016313712,0.04103667,90607.0,90600.0,0.04511952]
[1768016314006,0.03,90607.0,90600.0,0.04511952]
[1768016314903,0.04103667,90607.0,90600.0,0.04511952]
[1768016315870,0.03,90607.0,90600.0,0.04511952]
[1768016316449,0.03,90605.0,90600.0,0.04511952]
[1768016317578,0.04103679,90606.0,90600.0,0.04511952]
[1768016318483,0.03,90602.0,90600.0,0.04511952]
[1768016319871,0.03,90601.0,90599.0,3.450601]
[1768016320045,0.03,90601.0,90600.0,0.04611332]
[1768016323152,0.03,90605.0,90600.0,0.04611332]
[1768016325227,0.03,90604.0,90600.0,0.04611332]
[1768016326213,0.03,90605.0,90600.0,0.04611332]
[1768016327642,0.03,90604.0,90600.0,0.04611332]
[1768016330156,0.04103679,90606.0,90600.0,0.04611332]
[1768016331291,0.03,90606.0,90600.0,0.04611332]
[1768016331580,0.04103679,90606.0,90600.0,0.04611332]
[1768016332549,0.03,90605.0,90600.0,0.04611332]
[1768016333635,0.03,90604.0,90600.0,0.04611332]
[1768016334571,0.03,90606.0,90600.0,0.04611332]
[1768016335306,0.04103679,90606.0,90600.0,0.04611332]
[1768016335824,0.03,90606.0,90600.0,0.04611332]
[1768016336369,0.03,90607.0,90600.0,0.04611332]
[1768016336988,0.04103667,90607.0,90600.0,0.04611332]
[1768016337205,0.03,90606.0,90600.0,0.04611332]
[1768016338077,0.03,90604.0,90600.0,0.04611332]
[1768016339057,0.03,90606.0,90600.0,0.04611332]
[1768016342086,0.03,90605.0,90600.0,0.04611332]
[1768016343391,0.03,90607.0,90600.0,0.04611332]
[1768016343650,0.04103667,90607.0,90600.0,0.04611332]
[1768016344391,0.03,90607.0,90600.0,0.04611332]
[1768016345264,0.04103667,90607.0,90600.0,0.04611332]
[1768016345675,0.03,90607.0,90600.0,0.04611332]
[1768016346019,0.03,90606.0,90600.0,0.04611332]
[1768016347239,0.03,90606.0,90599.0,3.450601]
[1768016347473,0.01103667,90607.0,90603.0,0.03]
[1768016348104,0.01103667,90607.0,90604.0,0.04551574]
[1768016348309,0.01103655,90608.0,90604.0,0.04551574]
[1768016348519,0.03,90605.0,90604.0,0.04551574]
[1768016349434,0.03,90605.0,90599.0,3.450601]
[1768016349560,0.03,90604.0,90600.0,0.04551574]
[1768016350428,0.03,90604.0,90599.0,3.450601]
[1768016350709,0.01103667,90607.0,90603.0,0.03]
[1768016352119,0.01103667,90607.0,90599.0,3.450601]
[1768016352300,0.03,90606.0,90599.0,3.450601]
[1768016352453,0.04103679,90606.0,90599.0,3.450601]
[1768016353264,0.03,90606.0,90599.0,3.450601]
[1768016353633,9.006e-05,90604.0,90599.0,3.450601]
[1768016354053,0.03,90605.0,90599.0,3.450601]
[1768016354599,0.03,90607.0,90599.0,3.450601]
[1768016355251,0.01112649,90609.0,90599.0,3.450601]
[1768016355384,0.01103655,90608.0,90599.0,3.450601]
[1768016356196,0.01103655,90608.0,90599.0,3.49611674]
[1768016357070,0.01103655,90608.0,90600.0,0.04551574]
[1768016358274,0.0109565,90609.0,90600.0,0.04551574]
[1768016358469,0.03,90608.0,90600.0,0.04551574]
[1768016359550,0.03,90607.0,90600.0,0.04551574]
[1768016360654,0.03,90606.0,90600.0,0.04551574]
[1768016361236,0.01103667,90607.0,90603.0,0.03]
[1768016361434,0.01103655,90608.0,90603.0,0.03]
[1768016361649,0.01103667,90607.0,90603.0,0.03]
[1768016362149,0.01103655,90608.0,90604.0,0.04551574]
[1768016362359,0.03,90607.0,90604.0,0.04551574]
[1768016362764,0.04103667,90607.0,90604.0,0.04551574]
[1768016364927,0.03,90607.0,90604.0,0.04551574]
[1768016365077,0.04103667,90607.0,90604.0,0.04551574]
[1768016367207,0.03,90605.0,90604.0,0.04551574]
[1768016371954,0.03,90606.0,90604.0,0.04551574]
[1768016372338,0.04103679,90606.0,90599.0,3.49611674]
[1768016373539,0.03,90605.0,90599.0,3.49611674]
[1768016374002,0.03,90605.0,90600.0,0.04705472]
[1768016374721,0.03,90606.0,90600.0,0.04705472]
[1768016375587,0.06622127,90606.0,90603.0,0.07705472]
[1768016375791,0.01103679,90606.0,90603.0,0.07705472]
[1768016375998,0.06622112,90606.0,90603.0,0.07705472]
[1768016377152,0.06622112,90606.0,90603.0,0.04705472]
[1768016377663,0.08518459,90605.0,90603.0,0.04705472]
[1768016379068,0.03,90604.0,90603.0,0.04705472]
[1768016380543,0.01103667,90607.0,90604.0,4.128e-05]
[1768016380674,0.01091575,90607.0,90604.0,4.128e-05]
[1768016381563,0.03,90606.0,90604.0,4.128e-05]
[1768016382554,0.03,90605.0,90604.0,4.128e-05]
[1768016382813,0.01103655,90608.0,90605.0,4.025e-05]
[1768016382996,0.0110363,90610.0,90605.0,4.025e-05]
[1768016383239,0.01103643,90609.0,90605.0,4.025e-05]
[1768016383654,0.01103655,90608.0,90605.0,4.025e-05]
[1768016383847,0.03,90607.0,90605.0,4.025e-05]
[1768016384927,0.03,90606.0,90605.0,4.025e-05]
[1768016386032,0.03,90606.0,90605.0,0.04709497]
[1768016386274,0.01213509,90611.0,90606.0,0.000999]
[1768016386478,0.01213509,90611.0,90605.0,0.04709497]
[1768016386857,0.0110363,90610.0,90605.0,0.04709497]
[1768016387685,0.04103643,90609.0,90605.0,0.04709497]
[1768016387863,0.03,90607.0,90605.0,0.04709497]
[1768016388071,0.06621985,90608.0,90605.0,0.04709497]
[1768016388446,0.06617882,90608.0,90605.0,0.04709497]
[1768016388815,0.06613878,90608.0,90605.0,0.04709497]
[1768016389132,0.01095548,90608.0,90605.0,0.04709497]
[1768016389335,0.01091403,90608.0,90605.0,0.04709497]
[1768016389701,0.01025166,90608.0,90605.0,0.04709497]
[1768016389890,0.01103643,90609.0,90605.0,0.04709497]
[1768016390255,0.04103655,90608.0,90605.0,0.04709497]
[1768016390556,0.04103655,90608.0,90605.0,4.025e-05]
[1768016394995,0.03,90606.0,90605.0,4.025e-05]
[1768016396171,0.03,90607.0,90605.0,4.025e-05]
[1768016399238,0.03,90606.0,90605.0,4.025e-05]
[1768016400519,0.01103643,90609.0,90606.0,4.161e-05]
[1768016400935,0.06621888,90609.0,90606.0,4.161e-05]
[1768016401139,0.01103643,90609.0,90606.0,4.161e-05]
[1768016401346,0.06621864,90609.0,90606.0,4.161e-05]
[1768016401799,0.03,90608.0,90606.0,4.161e-05]
[1768016402226,0.01103643,90609.0,90606.0,4.161e-05]
[1768016402437,0.01094633,90609.0,90606.0,4.161e-05]
[1768016404174,0.01094633,90609.0,90605.0,4.025e-05]
[1768016404430,0.01103655,90608.0,90605.0,4.025e-05]
[1768016404905,9.006e-05,90607.0,90605.0,4.025e-05]
[1768016405106,0.01103655,90608.0,90605.0,4.025e-05]
[1768016406235,0.01094633,90609.0,90605.0,4.025e-05]
[1768016406439,0.01094633,90609.0,90605.0,0.04895614]
[1768016407038,0.01103655,90608.0,90605.0,0.04895614]
[1768016407244,0.03,90607.0,90605.0,0.04895614]
[1768016407454,0.01099518,90608.0,90605.0,0.04895614]
[1768016407661,0.01103643,90609.0,90605.0,0.04895614]
[1768016408060,0.0110363,90610.0,90605.0,0.04895614]
[1768016408212,0.01103643,90609.0,90605.0,0.04895614]
[1768016408421,0.03,90608.0,90605.0,0.04895614]
[1768016409407,0.01103643,90609.0,90605.0,0.04895614]
[1768016409641,0.03,90608.0,90605.0,0.04895614]
[1768016410037,0.0109537,90609.0,90605.0,0.04895614]
[1768016410241,0.0110363,90610.0,90605.0,0.04895614]
[1768016410665,0.04103643,90609.0,90605.0,0.04895614]
[1768016411494,0.03,90609.0,90605.0,0.04895614]
[1768016412088,0.01103643,90609.0,90605.0,0.04891589]
[1768016412989,0.01099605,90610.0,90605.0,0.04891589]
[1768016413131,0.01103643,90609.0,90605.0,0.04891589]
[1768016413309,9.006e-05,90606.0,90599.0,3.450601]
[1768016413719,9.006e-05,90603.0,90599.0,3.450601]
[1768016413918,0.00931604,90608.0,90599.0,3.450601]
[1768016414390,0.01103643,90609.0,90599.0,3.450601]
[1768016414743,0.04103655,90608.0,90599.0,3.450601]
[1768016415594,0.04103655,90608.0,90600.0,0.04891589]
[1768016416592,0.03,90608.0,90600.0,0.04891589]
[1768016416898,0.04103655,90608.0,90600.0,0.04891589]
[1768016418576,0.03,90606.0,90600.0,0.04891589]
[1768016419542,0.03,90605.0,90600.0,0.04891589]
[1768016419673,0.01103643,90609.0,90600.0,0.04891589]
[1768016420438,0.01099605,90610.0,90600.0,0.04891589]
[1768016420847,0.03,90609.0,90600.0,0.04891589]
[1768016421073,0.04103643,90609.0,90600.0,0.04891589]
[1768016421226,0.01094633,90609.0,90600.0,0.04891589]
[1768016421905,0.01099605,90610.0,90600.0,0.04891589]
[1768016422699,0.01103643,90609.0,90600.0,0.04891589]
[1768016422900,0.01099605,90610.0,90600.0,0.04891589]
[1768016424087,0.01103643,90609.0,90600.0,0.04891589]
[1768016424785,0.01099605,90610.0,90600.0,0.04891589]
[1768016425082,0.03,90609.0,90600.0,0.04891589]
[1768016425241,0.03,90609.0,90599.0,3.450601]
[1768016425432,0.03,90609.0,90600.0,0.04891589]
[1768016425637,0.01103618,90611.0,90609.0,0.04982489]
[1768016425839,0.01103618,90611.0,90609.0,0.000909]
[1768016426038,0.0110363,90610.0,90604.0,0.04891589]
[1768016426695,0.01103618,90611.0,90604.0,0.04891589]
[1768016426919,0.03,90610.0,90604.0,0.04891589]
[1768016427908,0.04103618,90611.0,90604.0,0.04891589]
[1768016429021,0.03,90611.0,90604.0,0.04891589]
[1768016430553,0.0110363,90610.0,90604.0,0.04891589]
[1768016430764,0.03,90609.0,90604.0,0.04891589]
[1768016430972,0.0110363,90610.0,90609.0,4.072e-05]
[1768016433667,0.0110363,90610.0,90609.0,7.2e-07]
[1768016433877,0.0110363,90610.0,90604.0,0.04891589]
[1768016434225,0.03,90609.0,90604.0,0.04891589]
[1768016435132,0.03,90608.0,90604.0,0.04891589]